Cogmind - Beta 16.1 @@@ ROGUE MODE // 2026.04.30 @ 19:42:09 Player: foolish jester Result: Destroyed by D-53 Grenadier with Mini Grenade Launcher Performance ------------- Evolutions (0) 0 Regions Visited (2) 400 Robots Destroyed (7) 35 Value Destroyed (77) 77 Prototype IDs (0) 0 Alien Tech Used (0) 0 Bonus (0) 0 TOTAL SCORE: 512 Bonus ------- None Cogmind --------- Core Integrity 0/250 Matter 232/300 Energy 94/100 System Corruption 1% Temperature Cool (2) Movement Treading (160) Location -10/Mines Parts ------- > --- POWER (1) -------- (None) > --- PROPULSION (2) --- Light Treads Light Treads > --- UTILITY (2) ------ Small Storage Unit > --- WEAPON (2) ------- (None) > --- INVENTORY (8) ---- Ion Engine Compact Wheel Improved Terrain Scanner Hacking Suite Peak State ------------ > --- POWER ------------ Ion Engine > --- PROPULSION ------- Light Treads Compact Wheel > --- UTILITY ---------- Small Storage Unit Improved Terrain Scanner > --- WEAPON ----------- EM Pulse Gun Light Assault Rifle > --- INVENTORY -------- Ion Engine Light Treads Aluminum Leg Aluminum Leg Wheel Compact Wheel Assault Rifle [Rating: 9] Favorites ----------- Power Ion Engine Engine Ion Engine Propulsion Hover Unit Treads Light Treads Wheel Compact Wheel Hover Unit Hover Unit Utility Small Storage Unit Device Seismic Detector Storage Small Storage Unit Weapon Light Assault Rifle Energy Gun EM Pulse Gun Ballistic Gun Light Assault Rifle Launcher Grenade Launcher Build | -11 -10 -10 ------- Run | Yrd Mat Min Slots Evolved . | . . . Power . | . . . Propulsion . | . . . Utility . | . . . Weapon . | . . . Parts Attached 13 | 8 2 3 Power 1 | 1 . . Engine 1 | 1 . . Core . | . . . Reactor . | . . . Propulsion 6 | 2 2 2 Treads 2 | 1 . 1 Leg . | . . . Wheel 2 | 1 . 1 Hover 2 | . 2 . Flight . | . . . Utility 3 | 3 . . Device 2 | 2 . . Storage 1 | 1 . . Processor . | . . . Hackware . | . . . Protection . | . . . Artifact . | . . . Weapon 3 | 2 . 1 Energy Gun 1 | 1 . . Energy Cannon . | . . . Ballistic Gun 1 | 1 . . Ballistic Cannon . | . . . Launcher 1 | . . 1 Special Weapon . | . . . Impact Weapon . | . . . Slashing Weapon . | . . . Piercing Weapon . | . . . Special Melee Weapon . | . . . Unidentified Prototypes . | . . . Corrupted Parts 1 | 1 . . System Corruption 1 | 1 . . Parts Lost 7 | . . 7 Power 1 | . . 1 Propulsion 2 | . . 2 Utility 1 | . . 1 Weapon 3 | . . 3 Highest Loss Streak 7 | . . 7 To Critical Strikes . | . . . Average Backups 7 | 5 8 6 Power 1 | 1 1 1 Propulsion 3 | 3 4 2 Utility 1 | . 1 2 Weapon 1 | 1 1 . Tool/Special . | . . . Unused Backups 7 | 1 4 2 Power 1 | . . 1 Propulsion 3 | . 3 . Utility 1 | . . 1 Weapon 2 | 1 1 . Tool/Special . | . . . Average Slot Usage (%) 98 | . 99 92 Engine 13 | . 14 12 Wheel 2 | . . 10 Hover 24 | . 25 12 Device 13 | . 14 12 Storage 14 | . 14 14 Energy Gun 13 | . 14 12 Ballistic Gun 13 | . 14 12 Peak Build Rating 9 | 9 8 8 Average Rating 7 | 5 7 7 On Entrance 5 | . 8 7 Avg Prop Armor Cover (%) 9 | 14 13 6 Naked Turns . | . . . Heaviest Build 14 | 14 14 14 Greatest Support 40 | 16 16 40 Greatest Overweight (x) 3 | 3 2 2 Average Overweight (x) . | . . 1 Largest Inventory Capacity 8 | 8 8 8 Average Capacity 7 | 7 8 8 Most Carried 8 | 8 8 8 Average Carried 7 | 6 7 6 Final Capacity 8 | 8 8 8 Final Carried 8 | 8 8 4 Class Distribution -------------------- 100% | Mutant Dominant Class ---------------- Mutant | -10/Materials Mutant | -10/Mines Resources | -11 -10 -10 ----------- Run | Yrd Mat Min Matter Collected 297 | 280 17 . Remotely . | . . . Salvage Created 267 | 134 118 15 Parts 14 | 7 7 . Haulers Intercepted . | . . . Recyclers Shooed 1 | 1 . . Parts Field Recycled . | . . . Retrieved Matter . | . . . Parts Self-Destructed . | . . . Prevented . | . . . Parts Restored . | . . . Kills | -11 -10 -10 ------- Run | Yrd Mat Min Combat Hostiles Destroyed 1 | . 1 . AOE 1 | . 1 . Classes Destroyed 5 | 2 2 1 Worker 1 | . . 1 Tunneler 2 | 2 . . Recycler 2 | 1 1 . Operator 1 | . 1 . Grunt 1 | . 1 . Best Kill Streak 2 | 2 1 1 Combat Bots Only 1 | . 1 . Max Kills in Single Turn 1 | 1 1 1 Gunslinging . | . . . Exploded 1 | . 1 . Melee . | . . . Uniques/NPCs Destroyed . | . . . Combat | -11 -10 -10 -------- Run | Yrd Mat Min Hostile Shots Fired 22 | . 7 15 Missed 1 | . 1 . Hits 21 | . 6 15 Projectile 21 | . 6 15 AOE 16 | . . 16 Damage Taken 768 | . 114 654 Core 257 | . 29 228 Absorbed by Shields . | . . . Core Remaining (%) 100 | 100 . . Volleys Fired 22 | 6 8 8 Largest 2 | 2 2 2 Hottest 70 | 60 60 70 Shots Fired 35 | 12 14 9 Gun 32 | 12 14 6 Cannon . | . . . Launcher 3 | . . 3 Special . | . . . Kinetic 14 | 6 5 3 Thermal . | . . . Explosive 3 | . . 3 Electromagnetic 18 | 6 9 3 Robot Hit Streak 6 | 5 6 1 Robot Miss Streak 2 | 1 1 2 Penetration Max . | . . . Secondary Targets . | . . . Shots Hit Robots 22 | 8 10 4 Core Hits 19 | 4 6 9 Critical Kills . | . . . Critical Parts Destroyed 1 | 1 . . Critical Strikes 1 | 1 . . Destroy 1 | 1 . . Melee Attacks . | . . . Impact . | . . . Slashing . | . . . Piercing . | . . . Sneak Attacks . | . . . Combat Hostiles . | . . . Follow-up Attacks . | . . . Damage Inflicted 347 | 88 172 87 Guns 241 | 88 125 28 Cannons . | . . . Explosions 106 | . 47 59 Melee . | . . . Ramming . | . . . Kinetic 62 | 23 24 15 Thermal 47 | . 47 . Explosive 59 | . . 59 Electromagnetic 179 | 65 101 13 Impact . | . . . Slashing . | . . . Piercing . | . . . Highest Corruption 1 | 1 1 1 Average Corruption 1 | 1 1 1 Corruption Purged . | . . . Corruption Blocked . | . . . Effects 5 | . 3 2 Message Errors 1 | . 1 . Matter Fused 1 | . . 1 Heat Flow Errors 1 | . . 1 Energy Discharges 1 | . 1 . Misfires 1 | . 1 . Overload Shots . | . . . Overflow Damage . | . . . Projectiles . | . . . Explosions . | . . . Melee . | . . . Knockbacks . | . . . Impact . | . . . Kinetic . | . . . Secondary . | . . . Self-Inflicted Damage 35 | . 35 . Shots 1 | . 1 . Rammed . | . . . Targets Rammed . | . . . Kicked . | . . . Crushed . | . . . Highest Temperature 228 | 40 40 228 Average Temperature 58 | 18 18 121 Received Heat Transfer 45 | . 45 . Siege Activations . | . . . Martial Activations . | . . . Shielding Activations . | . . . Robots Disrupted . | . . . Combat Hostiles . | . . . Robots Corrupted . | . . . Combat Hostiles . | . . . Parts Fried . | . . . Impact Corruptions . | . . . Robots Melted . | . . . Combat Hostiles . | . . . Parts Melted . | . . . Heat Transferred . | . . . Parts Sabotaged . | . . . Parts Stolen . | . . . Parts Stripped . | . . . Power Chain Reactions 1 | . 1 . Alert | -11 -10 -10 ------- Run | Yrd Mat Min Maximum Alert Level . | . . . Low Security (%) 100 | 100 100 100 Level 1 . | . . . Level 2 . | . . . Level 3 . | . . . Level 4 . | . . . Level 5 . | . . . High Security . | . . . Max Security . | . . . Peak Influence 25 | 10 25 9 Initial . | . . . Average 1 | 1 1 . Influence Increases 74 | 15 39 20 Destroy 0b10 Robot/C 20 | . 20 . Destroy 0b10 Robot/NC 30 | 15 10 5 Successful Hack 4 | . 4 . Destroy Structure 20 | . 5 15 Influence Decreases 74 | 15 39 20 Time Decay 37 | 15 22 . Lost Part 20 | . . 20 Purge Threat 17 | . 17 . Squads Dispatched 2 | . 2 . Investigation 2 | . 2 . Extermination . | . . . Reinforcement . | . . . Assault . | . . . Garrison . | . . . Intercept . | . . . Searches Triggered . | . . . Construction Impeded . | . . . Haulers Reinforced . | . . . Active Scanning Responses . | . . . Cargo Convoy Interrupts . | . . . Stealth | -11 -10 -10 --------- Run | Yrd Mat Min Distress Signals . | . . . Communications Jammed . | . . . Distress Signals . | . . . Times Spotted 6 | . 4 2 Peak Tracking Total 2 | . 2 2 Tactical Retreats . | . . . Traps | -11 -10 -10 ------- Run | Yrd Mat Min Traps Triggered 2 | . 2 . Indirectly . | . . . Trap Hack Attempts . | . . . Triggered . | . . . Disarmed . | . . . Reprogrammed . | . . . Reused . | . . . Traps Extracted . | . . . Installed . | . . . Triggered . | . . . Machines | -11 -10 -10 ---------- Run | Yrd Mat Min Machines Disabled . | . . . Max in Single Turn . | . . . Machines Repaired . | . . . Machines Dismantled . | . . . Machines Sabotaged . | . . . Overloaded Fab Kills . | . . . Hacking | -11 -10 -10 --------- Run | Yrd Mat Min Machines Accessed 5 | . 5 . Terminals 5 | . 5 . Fabricators . | . . . Repair Stations . | . . . Recycling Units . | . . . Scanalyzers . | . . . Garrison Access . | . . . Total Hacks 15 | . 15 . Successful 6 | . 6 . Failed 9 | . 9 . Catastrophic 1 | . 1 . Database Lockouts . | . . . Manual 13 | . 13 . Terminals 15 | . 15 . Fabricators . | . . . Repair Stations . | . . . Recycling Units . | . . . Scanalyzers . | . . . Garrison Access . | . . . Terminal Hacks 5 | . 5 . Record 1 | . 1 . Part Schematic 1 | . 1 . Unreport Threat 1 | . 1 . Maintenance Status 1 | . 1 . Zone Layout 1 | . 1 . Fabricator Hacks . | . . . Repair Station Hacks . | . . . Recycling Unit Hacks . | . . . Scanalyzer . | . . . Garrison Access Hacks . | . . . Unauthorized Hacks 1 | . 1 . Terminals 1 | . 1 . Botnet 1 | . 1 . Fabricators . | . . . Repair Stations . | . . . Recycling Units . | . . . Scanalyzers . | . . . Garrison Access . | . . . Data Cores Recovered 1 | . 1 . Used . | . . . Hacking Detections 5 | . 5 . Full Trace Events 1 | . 1 . Feedback Events . | . . . Feedback Blocked . | . . . Robot Schematics Acquired . | . . . Robots Built . | . . . Authchips . | . . . Time . | . . . Total Robot Build Rating . | . . . Part Schematics Acquired 1 | . 1 . Parts Built . | . . . Authchips . | . . . Time . | . . . Total Part Build Rating . | . . . Part Studies Acquired . | . . . Parts Repaired . | . . . Time . | . . . Parts Recycled . | . . . Recycled Matter . | . . . Retrieved Matter . | . . . Retrieved Components . | . . . Parts Scanalyzed . | . . . Part Schematics Acquired . | . . . Parts Damaged . | . . . Bothacking | -11 -10 -10 ------------ Run | Yrd Mat Min Used RIF Installer . | . . . Robots Hacked . | . . . Non-combat . | . . . Combat . | . . . Robot Hacks Applied . | . . . Relay Couplers Released . | . . . Fabnet Peak Effective % . | . . . Robots Rewired . | . . . Allies Hacked . | . . . Hacks Repelled . | . . . Allies | -11 -10 -10 -------- Run | Yrd Mat Min Total Allies 3 | . . 3 Largest Group 3 | . . 3 Highest-Rated Group 40 | . . 40 Highest-Rated Ally 16 | . . 16 Total Orders . | . . . Ally Attacks 5 | . . 5 Total Damage 31 | . . 31 Kills . | . . . Allies Corrupted . | . . . Allies Melted . | . . . Intel | -11 -10 -10 ------- Run | Yrd Mat Min Active Infowar (turns) 864 | 29 743 92 Terrain 18 | 18 . . Seismic 846 | 11 743 92 Robot Analysis Total . | . . . Derelict Logs Recovered 1 | . . 1 Drone Launches . | . . . Drone Recoveries . | . . . Exploration | -11 -10 -10 ------------- Run | Yrd Mat Min Turns Passed 967 | 117 743 107 Spaces Moved 523 | 79 361 83 Core 14 | 14 . . Treads 2 | . . 2 Legs . | . . . Wheels 152 | 65 13 74 Hover 355 | . 348 7 Flight . | . . . Fastest Speed 50 | 50 100 95 Average Speed 111 | 94 116 103 Slowest Speed 200 | 200 180 180 Overloaded Moves . | . . . Propulsion Burnouts . | . . . Robots Hopped . | . . . Potential Cave-ins . | . . . Cave-ins Triggered . | . . . Exploration Rate (%) 21 | 4 47 14 Regions Visited 2 Branch Regions 1 Pre-discovered Areas . | . . . Known Exits Taken . | . . . Unknown Exits Taken 2 | 1 1 . Scrap Searched . | . . . Spaces Dug . | . . . Terrain Destroyed 19 | . 4 15 Melee . | . . . Projectile . | . . . AOE 19 | . 4 15 Terrain Rammed . | . . . Walls Destroyed . | . . . Machines Disabled . | . . . Actions | -11 -10 -10 --------- Run | Yrd Mat Min Total 883 | 111 676 96 Wait 294 | . 294 . Move 521 | 78 360 83 Hop . | . . . Pick Up 23 | 17 6 . Fast Attach . | . . . Attach 13 | 8 1 4 Detach . | . . . Swap 2 | . 1 1 Drop 8 | 2 6 . Fire 22 | 6 8 8 Melee . | . . . Ram . | . . . Kick . | . . . Crush . | . . . Escape Stasis . | . . . Rewire . | . . . Trap . | . . . Miscellaneous . | . . . Route ------- -11/Scrapyard -10/Materials (discovered 2 exits: [*Mat] / [*Min]) -10/Mines (discovered 1 exit: [*Mat]) History --------- Turn | Location | Event 12 | -11/Scrapyard | Discovered new exit (range 16) 118 | -11/Scrapyard | Entered Materials 305 | -10/Materials | Build established: Mutant 720 | -10/Materials | Discovered new exit (range 7) 741 | -10/Materials | Discovered new exit (range 15) 861 | -10/Materials | Entered Mines 872 | -10/Mines | Learned Materials emergency access door positions 902 | -10/Mines | Discovered new exit (range 7) 908 | -10/Mines | Assisted by bots powering up and referring to "LRC-V3" 939 | -10/Mines | Assembled infested the area 944 | -10/Mines | Assisted by a Guerilla fighting off Assembled 960 | -10/Mines | Core integrity fell below 50% 963 | -10/Mines | Core integrity fell below 20% 968 | -10/Mines | Destroyed by D-53 Grenadier with Mini Grenade Launcher Last Messages --------------- 00948_ D-53 Grenadier unfolds itself. 00949_ K-01 Serf collects debris. 00949_ K-01 Serf suffers critical hit (Destroy). 00949_ K-01 Serf destroyed. 00950_ Mercenary 1a destroyed. 00951_ K-01 Serf destroyed. 00951_ HV Slug penetrates D-53 Grenadier. 00953_ EM Pulse Gun destroyed. 00953_ Trooper 1a destroyed. 00953_ Seismic Detector destroyed. 00953_ 3P-XTH(h) destroyed. 00953_ Trooper 1b destroyed. 00955_ Wheel destroyed. 00957_ Hover Unit destroyed. 00959_ Ion Engine destroyed. 00959_ Grenade Launcher destroyed. 00962_ The unstable cave ceiling collapses. 00966_ Lgt. Assault Rifle destroyed. 00966_ U-05 Engineer lays Concrete. 00968_ The unstable cave ceiling collapses. Map ----- +----------------------------------------------------+ | ?????????????????????????????????????????????????? | | ?????????????????????????????????????????????????? | | ?????????????????????????????????????????????????? | | ?????????????????????????????????????????????????? | | ?????????????????????????????????????????????????? | | ?????????????????????????????????????????????????? | | ?????????????????????????????????????????????????? | | ?????????????????????????????????????????????????? | | ?????????????????????#???????????????????????????? | | ????????????????????? ???????????????????????????? | | ????????????????????? ???????????????????????????? | | ????????????????????? ???????????????????????????? | | ?????????????#####??? #??????????????????????????? | | ####????????## #### ######?????????????????????? | | # ##???????# #?????????????????????? | | ##??????# #????????????????????? | | #??????## ### ##??????????????????????????? | | #??????## ##?# #???????????????????? ??????? | | < #????### ?# #??????????????????? ???????? | | ##???# ## #####????????????? ????????? | | #??## # ##??????????? ?????????? | | #?## ##????????? ???????????? | | #### ###%% d ##?????? ????????????? | | ???# r # #????? #?????????????? | | ???###### d ##### #?????????????? | | ????????# * @ #?????????????? | | ????????## #?????????????? | | ?????????# ###### ########?????????????? | | ?????????????????### ##????????????????????? | | ???????????????????## ##?????????????????????? | | ????????????????????#######??????????????????????? | | | | | | | | | | | | | | | | | | | | | | | | | | | | | | | | | | | | | | | +----------------------------------------------------+ Best States ------------- Heat Dissipation 25 Energy Generation 10 Energy Capacity 250 Matter Stores 300 Matter Capacity 300 Sight Range 16 Terrain Scan Range 16 Terrain Scan Density 10 Evasion (%) 50 Recoil Reduction 1 Item Schematics ----------------- ECM Suite | -10/Materials | Hacked Robot Schematics ------------------ None Fabricated ------------ Nothing Repaired ---------- Nothing Studied --------- None Alien Tech Used ----------------- None Achievements -------------- None Challenges ------------ None Game ------ Seed StructuralArmoredEngine Manual? 0 Play Time 00:20:58 Cumulative 14.8 hours Start 2026.04.27 @ 11:32:03 End 2026.04.30 @ 19:42:09 Sessions 11 Manual Loads 0 Difficulty Rogue Special Mode None Game No. 37 Rogue 37 Adventurer 0 Explorer 0 Win Type - Total 0 Types 0/0/0/0/0/0/0/0/0/0 Lore% 9 Gallery% 16 Achievement% 14 Wizard Run 0 Options --------- Layout 1 ASCII 0 Keyboard 0 Movement Numpad Keybinds 0 Fullscreen 1 Font 24/Smallcaps Map View 76x35 Zoom Use 0% Tactical HUD 1 Map Filters NONE Filters NONE Steam 1 RUN: dd7626d3-3dd4-4050-9b1f-d6ba563c00f2